Cogmind - Beta 16 @@@ ROGUE MODE // 2025.10.31 @ 13:16:38 Player: Uranium-235 Result: Destroyed by Autobeam Turret with Autobeam Performance ------------- Evolutions (0) 0 Regions Visited (3) 600 Robots Destroyed (23) 115 Value Destroyed (414) 414 Prototype IDs (0) 0 Alien Tech Used (0) 0 Bonus (21) 21 TOTAL SCORE: 1150 Bonus ------- Follower Combat Kills 21 Cogmind --------- Core Integrity 0/250 Matter 300/300 Energy 250/250 System Corruption 1% Temperature Cool (6) Movement Walking (190) Ox1 Location -10/Subcaves Parts ------- > --- POWER (1) -------- Ion Engine > --- PROPULSION (2) --- Aluminum Leg Aluminum Leg > --- UTILITY (2) ------ Large Storage Unit Seismic Detector > --- WEAPON (2) ------- Hammer Hammer > --- INVENTORY (15) --- Improved Heat Sink Medium Storage Unit Large Storage Unit Weight Redist. System EM Pulse Gun Subdweller Laser Light Assault Rifle Grenade Launcher Hammer Peak State ------------ > --- POWER ------------ Ion Engine > --- PROPULSION ------- Aluminum Leg Aluminum Leg > --- UTILITY ---------- Small Storage Unit Seismic Detector > --- WEAPON ----------- Medium Laser Light Assault Rifle > --- INVENTORY -------- Ion Engine Light Treads Light Treads Wheel Wheel Compact Wheel Improved Terrain Scanner EM Pulse Gun [Rating: 8] Favorites ----------- Power Ion Engine Engine Ion Engine Propulsion Aluminum Leg Leg Aluminum Leg Utility Seismic Detector Device Seismic Detector Storage Small Storage Unit Weapon Hammer Energy Gun Medium Laser Energy Cannon Beam Cannon Ballistic Gun Light Assault Rifle Impact Weapon Hammer Build | -11 -10 -10 -10 ------- Run | Yrd Mat Min Sub Slots Evolved . | . . . . Power . | . . . . Propulsion . | . . . . Utility . | . . . . Weapon . | . . . . Parts Attached 16 | 8 7 . 1 Power 3 | 1 1 . 1 Engine 3 | 1 1 . 1 Core . | . . . . Reactor . | . . . . Propulsion 4 | 2 2 . . Treads . | . . . . Leg 4 | 2 2 . . Wheel . | . . . . Hover . | . . . . Flight . | . . . . Utility 3 | 2 1 . . Device 1 | 1 . . . Storage 2 | 1 1 . . Processor . | . . . . Hackware . | . . . . Protection . | . . . . Artifact . | . . . . Weapon 6 | 3 3 . . Energy Gun 2 | 2 . . . Energy Cannon 1 | . 1 . . Ballistic Gun 1 | 1 . . . Ballistic Cannon . | . . . . Launcher . | . . . . Special Weapon . | . . . . Impact Weapon 2 | . 2 . . Slashing Weapon . | . . . . Piercing Weapon . | . . . . Special Melee Weapon . | . . . . Unidentified Prototypes . | . . . . Parts Lost 2 | . 1 . 1 Power 1 | . . . 1 Propulsion 1 | . 1 . . Utility . | . . . . Weapon . | . . . . Highest Loss Streak 1 | . 1 . 1 To Critical Strikes . | . . . . Average Backups 8 | 4 7 9 9 Power . | . 1 1 . Propulsion 1 | 2 2 . . Utility 2 | . 1 4 4 Weapon 3 | . 2 4 4 Tool/Special . | . . . . Unused Backups 14 | . 7 . 7 Power . | . . . . Propulsion 5 | . 5 . . Utility 5 | . 1 . 4 Weapon 4 | . 1 . 3 Tool/Special . | . . . . Average Slot Usage (%) 99 | . 99 100 98 Engine 13 | . 14 14 12 Leg 27 | . 27 28 28 Device 14 | . 14 14 14 Storage 14 | . 14 14 14 Energy Cannon 4 | . 8 . . Ballistic Gun 2 | . 3 . . Impact Weapon 20 | . 15 28 28 Peak Build Rating 8 | 8 8 8 8 Average Rating 7 | 5 7 8 7 On Entrance 6 | . 8 8 8 Avg Prop Armor Cover (%) . | . . . . Naked Turns . | . . . . Heaviest Build 30 | 14 30 30 30 Greatest Support 20 | 20 20 20 20 Greatest Overweight (x) 1 | 1 1 1 1 Average Overweight (x) . | . . 1 1 Largest Inventory Capacity 15 | 8 15 15 15 Average Capacity 10 | 7 8 15 15 Most Carried 10 | 8 10 9 9 Average Carried 8 | 4 7 9 8 Final Capacity 15 | 8 15 15 15 Final Carried 9 | 8 9 9 9 Class Distribution -------------------- 56% | Mutant 43% | Scavenger-Mutant Dominant Class ---------------- Mutant | -10/Materials Scavenger-Mutant | -10/Mines Mutant | -10/Subcaves Resources | -11 -10 -10 -10 ----------- Run | Yrd Mat Min Sub Matter Collected 391 | 283 78 20 10 Remotely . | . . . . Salvage Created 689 | 80 430 78 101 Parts 28 | 6 18 . 4 Haulers Intercepted 1 | . 1 . . Recyclers Shooed . | . . . . Parts Field Recycled . | . . . . Retrieved Matter . | . . . . Parts Self-Destructed 4 | . . . 4 Prevented . | . . . . Parts Restored . | . . . . Kills | -11 -10 -10 -10 ------- Run | Yrd Mat Min Sub Combat Hostiles Destroyed 15 | . 13 . 2 Melee 6 | . 5 . 1 Guns 2 | . 2 . . Cannons 2 | . 2 . . Classes Destroyed 9 | 2 6 . 1 Worker 1 | . 1 . . Tunneler 2 | 1 . 1 . Hauler 1 | . 1 . . Recycler 2 | 1 . 1 . Operator 1 | . 1 . . Watcher 1 | . 1 . . Swarmer 8 | . 8 . . Grunt 5 | . 5 . . Subdweller 2 | . . . 2 Best Kill Streak 3 | 2 3 1 2 Combat Bots Only 3 | . 3 . 2 Max Kills in Single Turn 1 | 1 1 1 1 Gunslinging . | . . . . Exploded . | . . . . Melee 1 | . 1 . 1 Uniques/NPCs Destroyed . | . . . . Combat | -11 -10 -10 -10 -------- Run | Yrd Mat Min Sub Hostile Shots Fired 155 | . 84 15 56 Missed 57 | . 28 4 25 Hits 98 | . 56 11 31 Projectile 98 | . 56 11 31 Critical Strikes 1 | . 1 . . Damage Taken 929 | . 523 90 316 Core 256 | . 135 7 114 Absorbed by Shields . | . . . . Core Remaining (%) 100 | 100 . . . Volleys Fired 24 | 3 21 . . Largest 2 | 2 2 . . Hottest 80 | 70 80 . . Shots Fired 45 | 6 39 . . Gun 24 | 6 18 . . Cannon 21 | . 21 . . Launcher . | . . . . Special . | . . . . Kinetic 21 | 3 18 . . Thermal 24 | 3 21 . . Explosive . | . . . . Electromagnetic . | . . . . Robot Hit Streak 10 | 4 10 . . Robot Miss Streak 3 | 1 3 . . Penetration Max . | . . . . Secondary Targets . | . . . . Shots Hit Robots 63 | 4 44 4 11 Core Hits 18 | 3 14 . 1 Critical Kills 2 | . 1 . 1 Critical Parts Destroyed 5 | . 2 1 2 Critical Strikes 8 | 1 3 1 3 Burn 1 | 1 . . . Smash 7 | . 3 1 3 Melee Attacks 60 | . 40 7 13 Impact 60 | . 40 7 13 Slashing . | . . . . Piercing . | . . . . Sneak Attacks 4 | . 2 2 . Combat Hostiles . | . . . . Follow-up Attacks 5 | . 1 2 2 Damage Inflicted 1309 | 46 818 148 297 Guns 135 | 46 89 . . Cannons 209 | . 209 . . Explosions . | . . . . Melee 965 | . 520 148 297 Ramming . | . . . . Kinetic 97 | 8 89 . . Thermal 247 | 38 209 . . Explosive . | . . . . Electromagnetic . | . . . . Impact 965 | . 520 148 297 Slashing . | . . . . Piercing . | . . . . Highest Corruption 1 | . 1 1 1 Average Corruption 1 | . 1 1 1 Corruption Purged . | . . . . Corruption Blocked . | . . . . Effects 6 | . 4 1 1 Message Errors 4 | . 2 1 1 Data Loss (minor) 1 | . 1 . . Alerts 1 | . 1 . . Overload Shots . | . . . . Overflow Damage 226 | . 104 72 50 Projectiles . | . . . . Explosions . | . . . . Melee 226 | . 104 72 50 Knockbacks 4 | . 2 1 1 Impact 4 | . 2 1 1 Kinetic . | . . . . Secondary . | . . . . Self-Inflicted Damage . | . . . . Shots . | . . . . Rammed . | . . . . Targets Rammed . | . . . . Kicked . | . . . . Crushed . | . . . . Highest Temperature 160 | 30 160 . . Average Temperature 49 | 18 52 . . Received Heat Transfer 150 | . 84 . 66 Siege Activations . | . . . . Martial Activations . | . . . . Shielding Activations . | . . . . Robots Disrupted . | . . . . Combat Hostiles . | . . . . Robots Corrupted 8 | . 6 1 1 Combat Hostiles 5 | . 4 . 1 Parts Fried 8 | . 5 2 1 Impact Corruptions 17 | . 10 5 2 Robots Melted . | . . . . Combat Hostiles . | . . . . Parts Melted . | . . . . Heat Transferred 629 | 185 444 . . Parts Sabotaged . | . . . . Parts Stolen . | . . . . Parts Stripped . | . . . . Power Chain Reactions . | . . . . Alert | -11 -10 -10 -10 ------- Run | Yrd Mat Min Sub Maximum Alert Level . | . . . . Low Security (%) 100 | 100 100 100 . Level 1 . | . . . . Level 2 . | . . . . Level 3 . | . . . . Level 4 . | . . . . Level 5 . | . . . . High Security . | . . . . Max Security . | . . . . Peak Influence 165 | 5 165 75 . Initial 39 | . . 39 . Average 52 | . 71 24 . Influence Increases 618 | 10 423 110 75 Destroy 0b10 Robot/C 320 | . 260 60 . Destroy 0b10 Robot/NC 40 | 10 20 10 . Destroy Leader 64 | . 54 10 . Allied During Kill 15 | . . 15 . Successful Hack 50 | . 50 . . Disable Machine 15 | . 15 . . Destroy Structure 9 | . 9 . . Lose Combat Pursuer 105 | . 15 15 75 Influence Decreases 553 | 10 323 210 10 Entered New Map 61 | . . 61 . Time Decay 482 | 10 313 149 10 Lost Part 10 | . 10 . . Squads Dispatched 2 | . 2 . . Investigation 1 | . 1 . . Extermination . | . . . . Reinforcement 1 | . 1 . . Assault . | . . . . Garrison . | . . . . Intercept . | . . . . Searches Triggered . | . . . . Construction Impeded . | . . . . Haulers Reinforced . | . . . . Active Scanning Responses . | . . . . Cargo Convoy Interrupts . | . . . . Stealth | -11 -10 -10 -10 --------- Run | Yrd Mat Min Sub Distress Signals 3 | . 3 . . Communications Jammed . | . . . . Distress Signals . | . . . . Times Spotted 33 | . 20 3 10 Peak Tracking Total 6 | . 4 4 6 Tactical Retreats 3 | . 1 1 1 Traps | -11 -10 -10 -10 ------- Run | Yrd Mat Min Sub Traps Triggered 2 | . 2 . . Indirectly . | . . . . Trap Hack Attempts . | . . . . Triggered . | . . . . Disarmed . | . . . . Reprogrammed . | . . . . Reused . | . . . . Traps Extracted . | . . . . Installed . | . . . . Triggered . | . . . . Machines | -11 -10 -10 -10 ---------- Run | Yrd Mat Min Sub Machines Disabled 1 | . 1 . . Max in Single Turn 1 | . 1 . . Machines Repaired . | . . . . Machines Dismantled . | . . . . Machines Sabotaged . | . . . . Overloaded Fab Kills . | . . . . Hacking | -11 -10 -10 -10 --------- Run | Yrd Mat Min Sub Machines Accessed 7 | . 7 . . Terminals 7 | . 7 . . Fabricators . | . . . . Repair Stations . | . . . . Recycling Units . | . . . . Scanalyzers . | . . . . Garrison Access . | . . . . Total Hacks 30 | . 30 . . Successful 16 | . 16 . . Failed 14 | . 14 . . Catastrophic 2 | . 2 . . Database Lockouts . | . . . . Manual 22 | . 22 . . Terminals 30 | . 30 . . Fabricators . | . . . . Repair Stations . | . . . . Recycling Units . | . . . . Scanalyzers . | . . . . Garrison Access . | . . . . Terminal Hacks 9 | . 9 . . Robot Analysis 1 | . 1 . . Branch Access Points 1 | . 1 . . Terminal Index 1 | . 1 . . Locate Traps 2 | . 2 . . Hauler Manifests 1 | . 1 . . Registered Components 1 | . 1 . . Registered Prototypes 1 | . 1 . . Zone Layout 1 | . 1 . . Fabricator Hacks . | . . . . Repair Station Hacks . | . . . . Recycling Unit Hacks . | . . . . Scanalyzer . | . . . . Garrison Access Hacks . | . . . . Unauthorized Hacks 7 | . 7 . . Terminals 7 | . 7 . . Botnet 7 | . 7 . . Fabricators . | . . . . Repair Stations . | . . . . Recycling Units . | . . . . Scanalyzers . | . . . . Garrison Access . | . . . . Data Cores Recovered . | . . . . Used . | . . . . Hacking Detections 6 | . 6 . . Full Trace Events 3 | . 3 . . Feedback Events . | . . . . Feedback Blocked . | . . . . Robot Schematics Acquired . | . . . . Robots Built . | . . . . Authchips . | . . . . Time . | . . . . Total Robot Build Rating . | . . . . Part Schematics Acquired . | . . . . Parts Built . | . . . . Authchips . | . . . . Time . | . . . . Total Part Build Rating . | . . . . Part Studies Acquired . | . . . . Parts Repaired . | . . . . Time . | . . . . Parts Recycled . | . . . . Recycled Matter . | . . . . Retrieved Matter . | . . . . Retrieved Components . | . . . . Parts Scanalyzed . | . . . . Part Schematics Acquired . | . . . . Parts Damaged . | . . . . Bothacking | -11 -10 -10 -10 ------------ Run | Yrd Mat Min Sub Used RIF Installer . | . . . . Robots Hacked . | . . . . Non-combat . | . . . . Combat . | . . . . Robot Hacks Applied . | . . . . Relay Couplers Released . | . . . . Fabnet Peak Effective % . | . . . . Robots Rewired . | . . . . Allies Hacked . | . . . . Hacks Repelled . | . . . . Allies | -11 -10 -10 -10 -------- Run | Yrd Mat Min Sub Total Allies 3 | . . 3 . Largest Group 3 | . . 3 2 Highest-Rated Group 73 | . . 73 42 Highest-Rated Ally 31 | . . 31 31 Total Orders . | . . . . Ally Attacks 17 | . . 11 6 Total Damage 250 | . . 106 144 Kills 3 | . . 3 . Allies Corrupted . | . . . . Allies Melted . | . . . . Intel | -11 -10 -10 -10 ------- Run | Yrd Mat Min Sub Active Infowar (turns) 1550 | 35 920 422 173 Seismic 1550 | 35 920 422 173 Robot Analysis Total 1 | . 1 . . Derelict Logs Recovered 2 | . . 2 . Drone Launches . | . . . . Drone Recoveries . | . . . . Exploration | -11 -10 -10 -10 ------------- Run | Yrd Mat Min Sub Turns Passed 1613 | 98 920 422 173 Spaces Moved 911 | 58 564 215 74 Core 3 | 3 . . . Treads . | . . . . Legs 908 | 55 564 215 74 Wheels . | . . . . Hover . | . . . . Flight . | . . . . Fastest Speed 50 | 50 120 190 190 Average Speed 145 | 120 125 190 190 Slowest Speed 190 | 190 190 190 190 Overloaded Moves . | . . . . Propulsion Burnouts . | . . . . Robots Hopped . | . . . . Potential Cave-ins . | . . . . Cave-ins Triggered . | . . . . Exploration Rate (%) 44 | 4 98 66 8 Regions Visited 3 Branch Regions 2 Pre-discovered Areas . | . . . . Known Exits Taken 1 | . 1 . . Unknown Exits Taken 2 | 1 . 1 . Scrap Searched 1 | . . 1 . Spaces Dug 9 | . 9 . . Terrain Destroyed 9 | . 9 . . Melee 9 | . 9 . . Projectile . | . . . . AOE . | . . . . Terrain Rammed . | . . . . Walls Destroyed . | . . . . Machines Disabled . | . . . . Actions | -11 -10 -10 -10 --------- Run | Yrd Mat Min Sub Total 1061 | 77 678 219 87 Wait 28 | 1 27 . . Move 908 | 57 563 214 74 Hop . | . . . . Pick Up 19 | 8 10 . 1 Fast Attach 7 | 7 . . . Attach 2 | . 1 . 1 Detach . | . . . . Swap 8 | 1 7 . . Drop 12 | . 12 . . Fire 24 | 3 21 . . Melee 53 | . 37 5 11 Ram . | . . . . Kick . | . . . . Crush . | . . . . Escape Stasis . | . . . . Rewire . | . . . . Trap . | . . . . Miscellaneous . | . . . . Route ------- -11/Scrapyard -10/Materials (discovered 5 exits: [*Mat x3] / *Min x2) -10/Mines (discovered 2 exits: [*Mat] / [*Sub]) -10/Subcaves (discovered 1 exit: [*Rec]) History --------- Turn | Location | Event 21 | -11/Scrapyard | Discovered new exit (range 16) 99 | -11/Scrapyard | Entered Materials 154 | -10/Materials | Discovered new exit (range 16) 315 | -10/Materials | Build established: Mutant 370 | -10/Materials | Discovered new exit (range 10) 721 | -10/Materials | Discovered new exit (range 8) 761 | -10/Materials | Identified exit to Mines 768 | -10/Materials | Discovered new exit (range 7) 786 | -10/Materials | Core integrity fell below 50% 1019 | -10/Materials | Entered Mines 1019 | -10/Mines | Discovered new exit (range 7) 1022 | -10/Mines | Received a Mining Laser from a helpful Derelict 1035 | -10/Mines | Learned 4 Materials zone layouts 1046 | -10/Mines | Learned 2 Materials zone layouts 1111 | -10/Mines | Build established: Scavenger-Mutant 1418 | -10/Mines | Discovered new exit (range 5) 1441 | -10/Mines | Entered Subcaves 1441 | -10/Subcaves | Accompanied by 2 allies 1446 | -10/Subcaves | Led the pair of lost Derelicts to an unsafe place 1601 | -10/Subcaves | Core integrity fell below 20% 1608 | -10/Subcaves | Discovered new exit (range 12) 1614 | -10/Subcaves | Destroyed by Autobeam Turret with Autobeam Last Messages --------------- 01525_ J4-BSC(R) system corrupted by crushing effect. 01525_ Hammer follow-up attack on J4-BSC(R). 01525_ J4-BSC(R) suffers critical hit (Smash). 01525_ Destroyed Disposable Heat Sink. 01525_ J4-BSC(R) system corrupted by crushing effect. 01526_ J4-BSC(R) system terminally corrupted. 01526_ Sub. Monowheel fried. 01529_ Subatomizers dissect the Sub. Monowheel. 01531_ Acquired 10 matter. 01534_ Acquired Sub. Laser. 01544_ Subatomizers dissect the Sub. Monowheel. 01600_ S-10 Pest destroyed. 01607_ Flight Unit fries itself beyond repair. 01608_ EXIT=FOUND 01610_ S-10 Pest destroyed. 01611_ Subatomizers dissect the Lgt. Ion Engine. 01614_ Flight Unit fries itself beyond repair. Map ----- +----------------------------------------------------+ | ???????????????????????????????????# ""??????????? | | ??????????????????????????????????## "##?????????? | | ??????????????????????????????????# "??????????? | | ???????????????????????????????????# #??????????? | | ?????????????????????????????????### &#??????????? | | ???????????????????????????????### &%#??????????? | | ???????????????????????????????# %#????##????? | | ??????????????????????????????## " ="#???? ##???? | | ?????????????????????????????## "" %##??## #???? | | ?????????????????????????????#"""" ##??# #???? | | ?????????????????????????????#""""" % ##?# #???? | | ?????????????????????????????#"""" ### #?### | | ?????????????????????????????#"""" ## | | ???????????????????????##????#"" | | ????????????????????####<##??#" # | | ???????????????????#"""" ""??# ## | | ???????????????????#" " " ??## ## ##? | | ????????????????????" t t ???##?# ## ##? | | ???????????????????? ??????# ## #? | | ????????????????????? ??????# ### ##? | | ?????????????????????? ??????# ##### ##?? | | ??????????????????????#[ #??????# ##?## ##### | | ????????????????####??#% #??????## ##?# ## # | | ????????????????# ###s #??????## ### # | | ????????????????# # [ ###???## # | | ?????????????????# %@# ##### # | | ?????????????????# *= ### | | ?????????????????# ### ### | | ?????????????????# ##?###?# | | ????????????????## #??????## | | ????????????????# ##??????## # | | ????????????????# #???????## | | ????????????????# #?????## | | ????????????????# #######???### | | ?????????????? ##?????????# | | ????????????? ####??????????# #### | | ?????????????? #####?????????????# #???# | | ??????????????#########??????????????????#####???? | | ?????????????????????????????????????????????????? | | ?????????????????????????????????????????????????? | | ?????????????????????????????????????????????????? | | ?????????????????????????????????????????????????? | | ?????????????????????????????????????????????????? | | ?????????????????????????????????????????????????? | | ?????????????????????????????????????????????????? | | ?????????????????????????????????????????????????? | | ?????????????????????????????????????????????????? | | ?????????????????????????????????????????????????? | | ?????????????????????????????????????????????????? | | ?????????????????????????????????????????????????? | +----------------------------------------------------+ Best States ------------- Heat Dissipation 25 Energy Generation 10 Energy Capacity 250 Matter Stores 300 Matter Capacity 300 Sight Range 16 Terrain Scan Density 10 Evasion (%) 55 Item Schematics ----------------- None Robot Schematics ------------------ None Fabricated ------------ Nothing Repaired ---------- Nothing Studied --------- None Alien Tech Used ----------------- None Achievements -------------- None Challenges ------------ None Game ------ Seed AuthchipBeamDeconstructor Manual? 0 Play Time 00:14:33 Cumulative 66.0 hours Start 2025.10.31 @ 13:03:52 End 2025.10.31 @ 13:16:38 Sessions 1 Manual Loads 0 Difficulty Rogue Special Mode None Game No. 68 Rogue 68 Adventurer 0 Explorer 0 Win Type - Total 0 Types 0/0/0/0/0/0/0/0/0/0 Lore% 30 Gallery% 42 Achievement% 30 Wizard Run 0 Options --------- Layout 1 ASCII 0 Keyboard 1 Movement Numpad Keybinds 0 Fullscreen 1 Font 24/Smallcaps Map View 50x35 Zoom Use 0% Tactical HUD 1 Map Filters NONE Filters NONE Steam 1 RUN: bd5b8a64-7aec-40d9-a406-67f8fa919254